Cogmind - Beta 12 @@@ ROGUE MODE // 2023.03.27 @ 09:33:16 Player: ZLD1 Result: Destroyed by D-53 Grenadier with Mini Grenade Launcher Performance ------------- Evolutions (1) 500 Regions Visited (3) 600 Robots Destroyed (11) 55 Value Destroyed (254) 254 Prototype IDs (0) 0 Alien Tech Used (0) 0 Bonus (0) 0 TOTAL SCORE: 1409 Bonus ------- None Cogmind --------- Core Integrity 0/400 Matter 300/300 Energy 99/100 System Corruption 0% Temperature Cool (0) Movement Core (200) Ox3 Location -9/Mines Parts ------- > --- POWER (1) -------- (None) > --- PROPULSION (3) --- (None) > --- UTILITY (2) ------ Medium Storage Unit > --- WEAPON (3) ------- (None) > --- INVENTORY (10) --- Light Ion Engine Heat Sink Medium Storage Unit Weight Redist. System Structural Scanner Bomb Drone Bay Beam Rifle Assault Rifle Grenade Launcher Peak State ------------ > --- POWER ------------ Light Nuclear Core > --- PROPULSION ------- Aluminum Leg Aluminum Leg Flight Unit > --- UTILITY ---------- Medium Storage Unit Compact Matter Pod > --- WEAPON ----------- EM Pulse Gun Light Assault Rifle Plasma Cutter > --- INVENTORY -------- Light Ion Engine Medium Storage Unit Weight Redist. System Structural Scanner Bomb Drone Bay Beam Rifle Assault Rifle Grenade Launcher [Rating: 16] Favorites ----------- Power Light Ion Engine Engine Light Ion Engine Power Core Light Nuclear Core Propulsion Aluminum Leg Treads Improved Treads Leg Aluminum Leg Flight Unit Flight Unit Utility Medium Storage Unit Device Heat Sink Storage Medium Storage Unit Weapon Light Assault Rifle Energy Gun Medium Laser Ballistic Gun Light Assault Rifle Special Weapon Plasma Cutter Build | -11 -10 -9 -9 ------- Run | Jun Mat Mat Min Slots Evolved 2 | . . 2 . Power . | . . . . Propulsion 1 | . . 1 . Utility . | . . . . Weapon 1 | . . 1 . Parts Attached 39 | 8 14 15 2 Power 3 | 1 . 1 1 Engine 2 | 1 . 1 . Core 1 | . . . 1 Reactor . | . . . . Propulsion 11 | 4 4 3 . Treads 2 | 1 . 1 . Leg 7 | 3 3 1 . Wheel . | . . . . Hover . | . . . . Flight 2 | . 1 1 . Utility 16 | 1 8 6 1 Device 5 | . 1 4 . Storage 11 | 1 7 2 1 Processor . | . . . . Hackware . | . . . . Protection . | . . . . Artifact . | . . . . Weapon 9 | 2 2 5 . Energy Gun 6 | 2 2 2 . Energy Cannon . | . . . . Ballistic Gun 2 | . . 2 . Ballistic Cannon . | . . . . Launcher . | . . . . Special Weapon 1 | . . 1 . Impact Weapon . | . . . . Slashing Weapon . | . . . . Piercing Weapon . | . . . . Special Melee Weapon . | . . . . Unidentified Prototypes . | . . . . Parts Lost 7 | . . . 7 Power 1 | . . . 1 Propulsion 3 | . . . 3 Utility . | . . . . Weapon 3 | . . . 3 Highest Loss Streak 7 | . . . 7 To Critical Strikes . | . . . . Average Slot Usage (%) 91 | . 88 96 87 Engine 7 | . 14 11 . Core 3 | . . . 10 Treads 1 | . . 3 . Leg 24 | . 26 27 21 Flight 4 | . . 1 10 Device 6 | . 5 11 1 Storage 11 | . 14 11 11 Energy Gun 16 | . 26 17 10 Ballistic Gun 8 | . . 10 10 Special Weapon 4 | . . 2 10 Naked Turns . | . . . . Heaviest Build 20 | 12 17 20 20 Greatest Support 30 | 20 20 30 20 Greatest Overweight (x) 4 | 1 4 . 3 Average Overweight (x) . | . . . . Largest Inventory Capacity 20 | 8 20 10 10 Average Capacity 9 | 7 9 10 10 Most Carried 10 | 5 10 10 10 Average Carried 8 | 2 5 9 9 Final Capacity 10 | 8 10 10 10 Final Carried 10 | 2 9 10 10 Class Distribution -------------------- 63% | Scavenger-Gunner 31% | Mutant 5% | Scavenger-Mutant Dominant Class ---------------- Mutant | -10/Materials Scavenger-Gunner | -9/Materials Scavenger-Gunner | -9/Mines Resources | -11 -10 -9 -9 ----------- Run | Jun Mat Mat Min Matter Collected 627 | 74 104 196 253 Remotely . | . . . . Salvage Created 334 | . 103 231 . Parts 22 | . 3 19 . Haulers Intercepted . | . . . . Recyclers Shooed 2 | . 1 1 . Parts Field Recycled . | . . . . Retrieved Matter . | . . . . Parts Self-Destructed . | . . . . Prevented . | . . . . Kills | -11 -10 -9 -9 ------- Run | Jun Mat Mat Min Combat Hostiles Destroyed 11 | . 2 9 . Guns 10 | . 1 9 . Classes Destroyed 3 | . 1 2 . Swarmer 6 | . . 6 . Grunt 4 | . 2 2 . Sentry 1 | . . 1 . Best Kill Streak 3 | . 2 3 . Combat Bots Only 3 | . 2 3 . Max Kills in Single Turn 1 | . 1 1 . Gunslinging . | . . . . Exploded . | . . . . Melee . | . . . . Uniques/NPCs Destroyed . | . . . . Combat | -11 -10 -9 -9 -------- Run | Jun Mat Mat Min Damage Taken 1165 | . 176 286 703 Core 440 | . 40 63 337 Absorbed by Shields . | . . . . Core Remaining (%) 92 | 100 84 . . Volleys Fired 30 | . 10 18 2 Largest 3 | . 2 3 2 Hottest 110 | . 100 110 40 Shots Fired 74 | . 20 51 3 Gun 73 | . 20 51 2 Cannon . | . . . . Launcher . | . . . . Special 1 | . . . 1 Kinetic 26 | . . 24 2 Thermal 39 | . 20 18 1 Explosive . | . . . . Electromagnetic 9 | . . 9 . Robot Hit Streak 8 | . 7 8 1 Robot Miss Streak 3 | . 3 2 2 Penetration Max . | . . . . Secondary Targets . | . . . . Shots Hit Robots 46 | . 13 32 1 Core Hits 18 | . 5 13 . Critical Kills . | . . . . Critical Parts Destroyed . | . . . . Critical Strikes 2 | . 1 1 . Burn 2 | . 1 1 . Melee Attacks . | . . . . Impact . | . . . . Slashing . | . . . . Piercing . | . . . . Sneak Attacks . | . . . . Combat Hostiles . | . . . . Follow-up Attacks . | . . . . Damage Inflicted 575 | . 189 357 29 Guns 543 | . 189 346 8 Cannons . | . . . . Explosions . | . . . . Melee . | . . . . Ramming 20 | . . 11 9 Kinetic 156 | . . 148 8 Thermal 355 | . 189 154 12 Explosive . | . . . . Electromagnetic 44 | . . 44 . Impact . | . . . . Slashing . | . . . . Piercing . | . . . . Highest Corruption . | . . . . Average Corruption . | . . . . Corruption Purged . | . . . . Corruption Blocked . | . . . . Overload Shots . | . . . . Overflow Damage . | . . . . Projectiles . | . . . . Explosions . | . . . . Melee . | . . . . Knockbacks . | . . . . Impact . | . . . . Kinetic . | . . . . Secondary . | . . . . Self-Inflicted Damage . | . . . . Shots . | . . . . Rammed . | . . . . Targets Rammed 3 | . . 1 2 Kicked 3 | . . 1 2 Crushed . | . . . . Highest Temperature 484 | . 484 90 . Average Temperature 187 | . 256 44 . Received Heat Transfer 177 | . 99 78 . Effects 7 | . 7 . . Shutdowns 1 | . 1 . . Energy Bleed 1 | . 1 . . Short Circuit 2 | . 2 . . Damage (major) 3 | . 3 . . Siege Activations . | . . . . Robots Corrupted . | . . . . Combat Hostiles . | . . . . Parts Fried . | . . . . Impact Corruptions . | . . . . Robots Melted 1 | . 1 . . Combat Hostiles 1 | . 1 . . Parts Melted 4 | . 3 1 . Heat Transferred 1149 | . 629 483 37 Parts Sabotaged . | . . . . Parts Stolen . | . . . . Parts Stripped . | . . . . Power Chain Reactions . | . . . . Missiles Intercepted . | . . . . Alert | -11 -10 -9 -9 ------- Run | Jun Mat Mat Min Peak Influence 248 | . 65 248 42 Initial 42 | . . 27 42 Average 59 | . 33 102 33 Maximum Alert Level 1 | . . 1 . Low Security (%) 95 | 100 100 88 100 Level 1 4 | . . 11 . Level 2 . | . . . . Level 3 . | . . . . Level 4 . | . . . . Level 5 . | . . . . High Security . | . . . . Max Security . | . . . . Squads Dispatched 2 | . 1 1 . Investigation . | . . . . Extermination . | . . . . Reinforcement 2 | . 1 1 . Assault . | . . . . Garrison . | . . . . Intercept . | . . . . Searches Triggered . | . . . . Construction Impeded . | . . . . Haulers Reinforced . | . . . . Active Scanning Responses . | . . . . Cargo Convoy Interrupts . | . . . . Stealth | -11 -10 -9 -9 --------- Run | Jun Mat Mat Min Distress Signals . | . . . . Communications Jammed . | . . . . Distress Signals . | . . . . Times Spotted 23 | . 8 13 2 Peak Tracking Total 6 | . 6 3 2 Tactical Retreats 1 | . 1 . . Traps | -11 -10 -9 -9 ------- Run | Jun Mat Mat Min Traps Triggered . | . . . . Indirectly . | . . . . Trap Hack Attempts . | . . . . Triggered . | . . . . Disarmed . | . . . . Reprogrammed . | . . . . Reused . | . . . . Traps Extracted . | . . . . Installed . | . . . . Triggered . | . . . . Machines | -11 -10 -9 -9 ---------- Run | Jun Mat Mat Min Machines Disabled . | . . . . Max in Single Turn . | . . . . Machines Repaired . | . . . . Machines Sabotaged . | . . . . Overloaded Fab Kills . | . . . . Hacking | -11 -10 -9 -9 --------- Run | Jun Mat Mat Min Machines Accessed 3 | . . 2 1 Terminals 2 | . . 2 . Fabricators . | . . . . Repair Stations . | . . . . Recycling Units . | . . . . Scanalyzers . | . . . . Garrison Access . | . . . . Total Hacks 7 | . . 6 1 Successful 3 | . . 2 1 Failed 4 | . . 4 . Catastrophic 2 | . . 2 . Database Lockouts . | . . . . Manual . | . . . . Terminals 6 | . . 6 . Fabricators . | . . . . Repair Stations . | . . . . Recycling Units . | . . . . Scanalyzers . | . . . . Garrison Access . | . . . . Terminal Hacks 3 | . . 2 1 Record 1 | . . 1 . Open Door 1 | . . . 1 Transport Status 1 | . . 1 . Fabricator Hacks . | . . . . Repair Station Hacks . | . . . . Recycling Unit Hacks . | . . . . Scanalyzer . | . . . . Garrison Access Hacks . | . . . . Unauthorized Hacks . | . . . . Terminals . | . . . . Fabricators . | . . . . Repair Stations . | . . . . Recycling Units . | . . . . Scanalyzers . | . . . . Garrison Access . | . . . . Data Cores Recovered . | . . . . Used . | . . . . Hacking Detections 2 | . . 2 . Full Trace Events . | . . . . Feedback Events . | . . . . Feedback Blocked . | . . . . Robot Schematics Acquired . | . . . . Robots Built . | . . . . Authchips . | . . . . Time . | . . . . Total Robot Build Rating . | . . . . Part Schematics Acquired . | . . . . Parts Built . | . . . . Authchips . | . . . . Time . | . . . . Total Part Build Rating . | . . . . Parts Repaired . | . . . . Time . | . . . . Parts Recycled . | . . . . Recycled Matter . | . . . . Retrieved Matter . | . . . . Retrieved Components . | . . . . Parts Scanalyzed . | . . . . Part Schematics Acquired . | . . . . Parts Damaged . | . . . . Bothacking | -11 -10 -9 -9 ------------ Run | Jun Mat Mat Min Used RIF Installer . | . . . . Robots Hacked . | . . . . Non-combat . | . . . . Combat . | . . . . Robot Hacks Applied . | . . . . Relay Couplers Released . | . . . . Fabnet Peak Effective % . | . . . . Robots Rewired . | . . . . Allies Hacked . | . . . . Hacks Repelled . | . . . . Allies | -11 -10 -9 -9 -------- Run | Jun Mat Mat Min Total Allies . | . . . . Largest Group . | . . . . Highest-Rated Group . | . . . . Highest-Rated Ally . | . . . . Total Orders . | . . . . Ally Attacks . | . . . . Total Damage . | . . . . Kills . | . . . . Allies Corrupted . | . . . . Allies Melted . | . . . . Intel | -11 -10 -9 -9 ------- Run | Jun Mat Mat Min Robot Analysis Total . | . . . . Derelict Logs Recovered 1 | . . . 1 Drone Launches . | . . . . Drone Recoveries . | . . . . Exploration | -11 -10 -9 -9 ------------- Run | Jun Mat Mat Min Turns Passed 1420 | 87 251 581 501 Spaces Moved 859 | 66 108 285 400 Core 32 | 27 . . 5 Treads . | . . . . Legs 825 | 39 106 285 395 Wheels . | . . . . Hover . | . . . . Flight 2 | . 2 . . Fastest Speed 50 | 50 120 120 120 Average Speed 123 | 109 147 120 121 Slowest Speed 370 | 190 370 120 200 Overloaded Moves . | . . . . Propulsion Burnouts . | . . . . Robots Hopped . | . . . . Cave-ins Triggered . | . . . . Exploration Rate (%) 34 | 4 27 31 76 Regions Visited 3 Branch Regions 1 Pre-discovered Areas 1 | . . . 1 Known Exits Taken . | . . . . Unknown Exits Taken 3 | 1 1 1 . Scrap Searched 1 | . . . 1 Spaces Dug . | . . . . Terrain Destroyed . | . . . . Melee . | . . . . Projectile . | . . . . AOE . | . . . . Terrain Rammed . | . . . . Walls Destroyed . | . . . . Machines Disabled . | . . . . Actions | -11 -10 -9 -9 --------- Run | Jun Mat Mat Min Total 1164 | 80 178 489 417 Wait 172 | . 24 147 1 Move 856 | 65 107 284 400 Hop . | . . . . Pick Up 33 | 6 15 8 4 Fast Attach 15 | 3 1 11 . Attach 15 | 4 5 4 2 Detach . | . . . . Swap 9 | 1 8 . . Drop 31 | 1 8 16 6 Fire 30 | . 10 18 2 Melee . | . . . . Ram . | . . . . Kick 3 | . . 1 2 Crush . | . . . . Escape Stasis . | . . . . Rewire . | . . . . Trap . | . . . . Miscellaneous . | . . . . Route ------- -11/Junkyard -10/Materials -9/Materials -9/Mines (discovered 2 exits: [*Mat x2]) History --------- Turn | Location | Event 4 | -11/Junkyard | Discovered new exit (range 15) 88 | -11/Junkyard | Entered Materials 287 | -10/Materials | Discovered new exit (range 10) 339 | -10/Materials | Entered another Materials area 339 | -9/Materials | Evolved 2 slots: Propulsion x1, Weapon x1 738 | -9/Materials | Discovered new exit (range 14) 794 | -9/Materials | Build established: Scavenger-Gunner 920 | -9/Materials | Entered Mines 927 | -9/Mines | Found the Drone Emporium 936 | -9/Mines | Found Prototype Device 1013 | -9/Mines | Assembled infested the area 1067 | -9/Mines | Learned location of Storage (-9) 1210 | -9/Mines | Discovered new exit (range 7) 1288 | -9/Mines | Discovered new exit (range 10) 1417 | -9/Mines | Core integrity fell below 50% 1421 | -9/Mines | Destroyed by D-53 Grenadier with Mini Grenade Launcher Last Messages --------------- 01210_ EXIT=FOUND 01282_ Searching scrap... 01282_ Found Plasma Cutter. 01282_ Found Structural Scanner. 01282_ Found Hover Unit. 01282_ Found Hrd. Light Armor Plating. 01282_ Found 14 Matter. 01288_ EXIT=FOUND 01401_ EM Pulse Gun destroyed. 01403_ Flight Unit destroyed. 01403_ Lgt. Nuclear Core destroyed. 01403_ K-01 Serf destroyed. 01407_ Aluminum Leg destroyed. 01409_ Destroyed Shock Absorption System. 01409_ Aluminum Leg destroyed. 01410_ Lgt. Assault Rifle destroyed. 01412_ Plasma Cutter destroyed. 01415_ The unstable cave ceiling collapses. 01420_ U-05 Engineer lays Concrete. 01421_ U-05 Engineer destroyed. Map ----- +----------------------------------------------------+ | ?????# ## ##?# #??? ??????? | | ?????# ## ##??# #???#### ?????? | | ?????#### ### ###???# #????????#????? "" | | ??????### ##?###?????# #?????????????? "" | | ?????## #?????????# #?????????????? ?? | | ?????# #?????????# #????????????????? | | ?????# ##?????????# #????????????????? | | ?????# ##??????????# #?##?????????????? | | ?????## #???????????# ## ???????#?????? | | ??????# ##??????????# ## #?????? #?????? | | ?????## #??????????# ## #????? #?????? | | ?????# #??????????# ## #???## #?????? | | ?????# #??????????# # #??# ##????? | | ?????# ##?????????? *#?# #????? | | ?????# ###??######### ## """ ?????? | | ?????# #?#### !!| """ ?????? | | ????## ### # %%= """ | | ????# *### ## | | ????# ### ##### ### | | ????# < ## #????###???? ?? | | ????## d ## #?????????????????? | | ???#### ## #?????????????????? | | ???#g # #?????????????????? | | ???#g ### #?????????????????? | | ???#g d ## ##????????????????? | | ???#### # @ =%! #????????????????? | | ??????## # *## #????????????????? | | ??????## #? #????????????????? | | ??????# ##? ?#????????????????? | | ??????# ##?? ??????????????????? | | ??????## ##???#??????????????????? | | ???????## #???????????????????????? | | ????????## #???????????????????????? | | ?????????# ##???????????????????????? | | ?????????## ##????????????????????????? | | ??????????## #?????????????????????????? | | ???????????## ##?????????????????????????? | | ????????????####??????????????????????????? | | ??????????????????????????????????????????? | | ??????????????????????????????????????????? | | ??????????????????????????????????????????? | | ??????????????????????????????????????????? | | ??????????????????????????????????????????? | | ??????????????????????????????????????????? | | | | | | | | | | | | | +----------------------------------------------------+ Best States ------------- Heat Dissipation 38 Energy Generation 14 Energy Capacity 160 Matter Stores 300 Matter Capacity 300 Sight Range 16 Terrain Scan Density 10 Evasion (%) 55 Item Schematics ----------------- None Robot Schematics ------------------ None Fabricated ------------ Nothing Alien Tech Used ----------------- None Achievements -------------- None Challenges ------------ None Game ------ Seed DeliveryZionitePod Manual? 0 Play Time 00:18:58 Cumulative 16.8 hours Start 2023.03.26 @ 11:54:05 End 2023.03.27 @ 09:33:16 Sessions 3 Manual Loads 0 Difficulty Rogue Special Mode None Game No. 39 Rogue 39 Adventurer 0 Explorer 0 Win Type - Total 0 Types 0/0/0/0/0/0/0/0/0 Lore% 17 Gallery% 25 Achievement% 17 Wizard Run 0 Options --------- ASCII 0 Keyboard 0 Movement Mouse Keybinds 0 Fullscreen 1 Font 24/Smallcaps Map View 64x52 Tactical HUD 1 Map Filters NONE Filters NONE Steam 1 RUN: 17ae0d9b-3e49-49fe-8033-79c57d708157